[Event "Biel Challengers Blitz 2024"]
[White "Bjerre,Jonas Buhl"]
[Black "Samunenkov,Ihor"]
[Site "Biel"]
[Round "5.1"]
[Annotator "TA"]
[Result "1-0"]
[Date "2024.07.21"]
[WhiteElo "2653"]
[BlackElo "2532"]
[PlyCount "112"]
[TimeControl "180+2"]

{[%evp 21,112,20,19,15,13,27,19,13,13,16,22,13,16,14,11,16,25,12,9,4,41,74,64,15,50,53,51,52,53,0,18,-12,-27,-32,-35,-35,-9,-13,-12,-29,-17,-35,-10,-40,-14,-55,-30,-106,-28,-26,20,-12,-8,-93,-55,-121,-56,-87,-34,-65,-46,-109,-117,-122,-123,-123,-51,-75,-19,-30,-8,-16,0,0,0,0,68,0,16,18,39,16,25,0,0,0,33,16,14,12,41,48,124]} 1. e4 {[%emt 0:0:1]} e5 {[%emt 0:0:1]} 2. Nf3 {[%emt 0:0:1]} Nf6 {[%emt 0:0:2]} 3. Nxe5 {[%emt 0:0:2]} d6 {[%emt 0:0:1]} 4. Nf3 {[%emt 0:0:1]} Nxe4 {[%emt 0:0:2]} 5. d4 {[%emt 0:0:1]} d5 {[%emt 0:0:1]} 6. Bd3 {[%emt 0:0:1]} Bd6 {[%emt 0:0:2]} 7. O-O {[%emt 0:0:3]} O-O {[%emt 0:0:3]} 8. c4 {[%emt 0:0:2]} c6 {[%emt 0:0:1]} 9. Nc3 {[%emt 0:0:2]} Nxc3 {[%emt 0:0:2]} 10. bxc3 {[%emt 0:0:2]} dxc4 {[%emt 0:0:2]} 11. Bxc4 {[%emt 0:0:1]} Bf5 {[%emt 0:0:3]} 12. Bg5 {[%emt 0:0:13]} Qa5 {[%emt 0:0:2]} 13. Nh4 {[%emt 0:0:3]} Be6 {[%emt 0:0:2]} 14. Bxe6 {[%emt 0:0:2] [#] Threatens to win with Bf5. The position is equal.} Qxg5 {[%emt 0:0:2]} 15. Nf3 {[%emt 0:0:1]} Qa5 {[%emt 0:0:2]} 16. Bb3 {[%emt 0:0:3]} Nd7 {[%emt 0:0:4]} 17. Qd3 {[%emt 0:0:2]} Nf6 {[%emt 0:0:6]} 18. g3 {[%emt 0:0:5]} g6 {[%emt 0:0:5]} 19. h4 {[%emt 0:0:5]} Kg7 {[%emt 0:0:43]} 20. Kg2 {[%emt 0:0:1]} Qf5 {[%emt 0:0:13]} (20... c5 {is more complex.} 21. Rfe1 Rae8 22. Ng5 Rxe1 23. Rxe1 cxd4 24. Qxd4 Bc5 )21. Qxf5 {[%emt 0:0:17]} gxf5 {[%emt 0:0:1]} 22. Nd2 {[%emt 0:0:17]} (22. h5 $14 {might be stronger.} )Rae8 {[%emt 0:0:12]} 23. Nc4 {[%emt 0:0:13]} Bc7 {[%emt 0:0:5]} 24. Ne3 {[%emt 0:0:2] Against Nd5} f4 {[%emt 0:0:8]} 25. gxf4 {[%emt 0:0:11]} (25. Nf5+ $14 Kh8 26. Rad1 )Ne4 {[%emt 0:0:7]} 26. Rac1 {[%emt 0:0:21]} Bxf4 {[%emt 0:0:5]} 27. Rg1 {[%emt 0:0:2]} Kh8 {[%emt 0:0:5][%cal Oe4f2]} 28. Kf3 {[%emt 0:0:7]} Bh6 {[%emt 0:0:32]} 29. Rc2 {[%emt 0:0:1]} f5 {[%emt 0:0:2][%cal Oe4f2]} 30. Nc4 {[%emt 0:0:15]} Bg7 {[%emt 0:0:7]} 31. a4 {[%emt 0:0:7]} (31. Kg2 {simplifies} Re7 32. Nd2 Bf6 33. Nxe4 Rxe4 34. h5 )b6 {[%emt 0:0:10]} 32. Ba2 {[%emt 0:0:12]} Re7 {[%emt 0:0:2]} 33. Bb1 {[%emt 0:0:9]} b5 {[%emt 0:0:8]} 34. Ne3 {[%emt 0:0:9]} (34. axb5 $11 cxb5 35. Ne3 )Bh6 {[%emt 0:0:3]} (34... bxa4 $17 35. Ba2 c5 )35. axb5 $11 {[%emt 0:0:14] [#]} Nxf2 {[%emt 0:0:9]} 36. Nc4 {[%emt 0:0:1]} (36. bxc6 {with more complications.} Nh3 37. Re1 f4 38. Kg2 )cxb5 {[%emt 0:0:7] Strongly threatening ...Nh3.} 37. Ne5 {[%emt 0:0:12]} (37. Kxf2 $11 bxc4 38. Re1 )Ng4 {[%emt 0:0:1]} 38. Re2 {[%emt 0:0:10]} ({Better is} 38. Re1 $15 Rg7 39. Rb2 )Nxe5+ {[%emt 0:0:8]} (38... Rc7 $17 39. c4 bxc4 )39. dxe5 {[%emt 0:0:6]} Bg7 {[%emt 0:0:4]} ({Black should play} 39... Rc7 $17 40. Rd1 Rxc3+ 41. Rd3 Rc4 )40. Rge1 {[%emt 0:0:6]} Rc8 {[%emt 0:0:4]} 41. Bxf5 {[%emt 0:0:5]} ({White should try} 41. Kf4 $15 )Rxc3+ $17 {[%emt 0:0:13]} 42. Kf4 {[%emt 0:0:1]} Rc4+ {[%emt 0:0:2]} 43. Kg5 {[%emt 0:0:1]} Bf8 {[%emt 0:0:3]} (43... a5 $17 44. e6 b4 )44. Kf6 {[%emt 0:0:5]} Rcc7 {[%emt 0:0:5]} (44... Rc6+ $17 45. Kg5 Rg7+ 46. Kh5 Rf7 )45. e6 $11 {[%emt 0:0:4]} Bg7+ {[%emt 0:0:4]} 46. Kg5 {[%emt 0:0:1]} b4 {[%emt 0:0:3]} 47. Rd1 $1 {[%emt 0:0:3]} Rc8 {[%emt 0:0:1] Prevents Rd8+.} 48. Rd7 {[%emt 0:0:2]} Rce8 {[%emt 0:0:1]} (48... Rf8 $1 $11 )49. Bc2 {[%emt 0:0:4] White is much more active.} (49. Ra2 $14 )Bc3 {[%emt 0:0:4]} 50. Bb3 {[%emt 0:0:2][%mdl 1024] aiming for h5. White has compensation.} Rg8+ {[%emt 0:0:1]} 51. Kf5 {[%emt 0:0:1]} Rf8+ {[%emt 0:0:1]} 52. Ke4 {[%emt 0:0:1]} Rfe8 {[%emt 0:0:4]} 53. Kd5 {[%emt 0:0:1]} Kg7 {[%emt 0:0:2] White must now prevent ...Rxd7+.} 54. Rg2+ {[%emt 0:0:4]} Kh6 $1 {[%emt 0:0:1]} 55. Kd6 {[%emt 0:0:2]} Bf6 {[%emt 0:0:2]} (55... Be5+ $5 56. Kc5 (56. Kc6 a5 $11 )a5 $11 )56. Rf2 {[%emt 0:0:2]} Rxd7+ {[%emt 0:0:4] Weighted Error Value: White=0.21 (precise) /Black=0.21 (precise) .  Mistake:       	White=7     	Black=8      Inaccurate:     	White=6     	Black=7      OK:         	White=15    	Black=15     Best:        	White=1     	Black=1      Strong:       	White=1     	Black=1} (56... Be5+ $14 57. Kd5 Rxe6 )1-0

[Event "Biel Challengers Blitz 2024"]
[White "Maurizzi,Marc`Andria"]
[Black "Donchenko,Alexander"]
[Site "Biel"]
[Round "5.2"]
[Annotator "TA"]
[Result "1-0"]
[Date "2024.07.21"]
[WhiteElo "2610"]
[BlackElo "2639"]
[PlyCount "79"]
[TimeControl "180+2"]

{[%evp 11,79,19,22,16,6,10,10,0,0,-27,1,-35,7,-6,110,118,168,164,191,174,168,177,162,144,124,107,95,91,103,102,155,151,162,152,140,143,171,151,209,166,223,173,160,180,233,184,186,0,236,231,230,170,246,247,351,308,339,158,390,356,601,595,837,834,1047,1068,1480,1472,29991,29992]} 1. Nf3 {[%emt 0:0:2]} Nf6 {[%emt 0:0:1]} 2. d4 {[%emt 0:0:1]} g6 {[%emt 0:0:1]} 3. g3 {[%emt 0:0:3]} b6 {[%emt 0:0:1]} 4. Bg2 {[%emt 0:0:4]} Bb7 {[%emt 0:0:1]} 5. O-O {[%emt 0:0:1]} Bg7 {[%emt 0:0:1]} 6. c4 {[%emt 0:0:1]} O-O {[%emt 0:0:1]} 7. Re1 {[%emt 0:0:4]} e6 {[%emt 0:0:3]} 8. Nc3 {[%emt 0:0:2]} Ne4 {[%emt 0:0:2]} 9. Bd2 {[%emt 0:0:2] The position is equal.} d6 {[%emt 0:0:6]} 10. e3 {[%emt 0:0:19]} Nd7 {[%emt 0:0:3]} 11. Qc2 {[%emt 0:0:8]} Nxd2 {[%emt 0:0:5]} 12. Qxd2 {[%emt 0:0:1]} (12. Nxd2 {simplifies} c6 13. b4 Qc7 14. a4 )e5 {[%emt 0:0:4]} (12... Qe7 $11 )13. Nxe5 $1 $16 {[%emt 0:0:32]} Nxe5 {[%emt 0:0:47]} (13... Bxg2 $16 {might work better.} 14. Nxd7 Qxd7 15. Kxg2 Qc6+ 16. Nd5 Qxc4 17. Ne7+ Kh8 )14. Bxb7 $18 {[%emt 0:0:2]} Nxc4 {[%emt 0:0:1] Black is weak on the light squares} 15. Qe2 {[%emt 0:0:6]} Rb8 {[%emt 0:0:1]} 16. Bg2 {[%emt 0:0:14]} b5 {[%emt 0:0:7]} 17. b3 {[%emt 0:0:1]} Na3 {[%emt 0:0:2]} 18. Rac1 {[%emt 0:0:1] White is more active.} c5 {[%emt 0:0:5]} 19. dxc5 {[%emt 0:0:7]} dxc5 {[%emt 0:0:2]} 20. Red1 $36 {[%emt 0:0:0][%mdl 2048] Black is under strong pressure.} Qg5 {[%emt 0:0:52]} (20... Qe8 $142 )21. Ne4 {[%emt 0:0:2][%csl LRc5,LRg5]} Qe7 {[%emt 0:0:1]} 22. Nxc5 {[%emt 0:0:9] [#] Nd7 is the strong threat.} Rfc8 {[%emt 0:0:5]} 23. Ne4 {[%emt 0:0:24]} a5 {[%emt 0:0:17]} 24. h4 {[%emt 0:0:3]} h5 {[%emt 0:0:21]} (24... Rxc1 $16 {was called for.} 25. Rxc1 Rd8 )25. Qf3 {[%emt 0:0:41]} b4 {[%emt 0:0:5]} (25... Rc2 $142 26. Rxc2 Nxc2 )26. Bf1 {[%emt 0:0:19]} Rxc1 {[%emt 0:0:13]} 27. Rxc1 {[%emt 0:0:0]} Re8 {[%emt 0:0:1]} (27... Rd8 $142 28. Rc6 Bc3 29. Nxc3 bxc3 30. Rxc3 Nb1 )28. Bd3 {[%emt 0:0:15]} Rd8 {[%emt 0:0:14]} 29. Bf1 {[%emt 0:0:7]} (29. Be2 $142 )Re8 $1 {[%emt 0:0:2]} 30. Ng5 {[%emt 0:0:2]} Bf6 {[%emt 0:0:2]} 31. Nh3 {[%emt 0:0:0]} Bb2 {[%emt 0:0:5]} (31... Kg7 {was worth a try.} 32. Nf4 Rd8 )32. Rc6 {[%emt 0:0:2]} Nb1 {[%emt 0:0:6]} (32... Qe4 $142 33. Qxe4 Rxe4 )33. Qd5 {[%emt 0:0:6]} Kg7 {[%emt 0:0:6]} 34. Bd3 {[%emt 0:0:4]} (34. Qxa5 Be5 35. Qc5 Nd2 )(34. Nf4 $18 {has better winning chances.} )Nc3 $2 {[%emt 0:0:1] Black cannot hold the game after this.} (34... Rd8 $16 35. Qb5 Nc3 )35. Qd4+ {[%emt 0:0:3]} (35. Qxa5 Qd7 36. Qa6 Qxh3 $11 )Kg8 $2 {[%emt 0:0:3]} (35... Qe5 36. Qc4 Re6 )36. Qc4 {[%emt 0:0:1] aiming for Ng5.} ({Don't blunder} 36. Bc4 $2 Ne2+ (36... Nxa2 $2 {is the wrong capture.} 37. Qxb2 Qe5 38. Qxa2 $18 )37. Kh2 Bxd4 $19 )Kg7 {[%emt 0:0:1]} 37. Nf4 {[%emt 0:0:1]} Qe5 {[%emt 0:0:3] [#]} 38. Bxg6 $1 {[%emt 0:0:2][%mdl 512]} fxg6 {[%emt 0:0:3]} (38... Qe7 39. Nxh5+ )39. Rxg6+ {[%emt 0:0:1]} Kh8 {[%emt 0:0:0]} 40. Qf7 {[%emt 0:0:1] Weighted Error Value: White=0.31/Black=0.59.  Loses game:     	---       	Black=1      Missed win:     	White=1     	---        Mistake:       	White=1     	Black=9      Inaccurate:     	White=2     	Black=3      OK:         	White=7     	Black=7      Best:        	White=2     	Black=1      Strong:       	White=1     	Black=1} 1-0

[Event "Biel Challengers Blitz 2024"]
[White "Vaishali,Rameshbabu"]
[Black "Salem,A.R. Saleh"]
[Site "Biel"]
[Round "5.3"]
[Annotator "TA"]
[Result "0-1"]
[Date "2024.07.21"]
[WhiteElo "2489"]
[BlackElo "2638"]
[PlyCount "67"]
[TimeControl "180+2"]

{[%evp 14,67,17,24,21,12,8,18,8,5,4,2,21,0,0,0,0,-10,-7,-31,-19,-17,-26,-40,-31,-31,-21,-35,-14,0,-4,-12,-19,-29,0,-29,-30,-39,-31,-32,-26,-138,-124,-266,-275,-412,-405,-572,-529,-484,-417,-893,-908,-883,-862,-794]} 1. Nf3 {[%emt 0:0:2]} Nf6 {[%emt 0:0:1]} 2. g3 {[%emt 0:0:1]} d5 {[%emt 0:0:3]} 3. Bg2 {[%emt 0:0:1]} c5 {[%emt 0:0:0]} 4. O-O {[%emt 0:0:4]} e6 {[%emt 0:0:2]} 5. c4 {[%emt 0:0:4]} d4 {[%emt 0:0:1]} 6. e3 {[%emt 0:0:1]} Nc6 {[%emt 0:0:1]} 7. exd4 {[%emt 0:0:2]} cxd4 {[%emt 0:0:1]} 8. d3 {[%emt 0:0:1]} Bd6 {[%emt 0:0:0]} 9. a3 {[%emt 0:0:7]} a5 {[%emt 0:0:1]} 10. Bg5 {[%emt 0:0:2]} h6 {[%emt 0:0:1] The position is equal.} 11. Bxf6 {[%emt 0:0:2]} Qxf6 {[%emt 0:0:0]} 12. Nbd2 {[%emt 0:0:1][%cal Ob2b4]} Qe7 {[%emt 0:0:1]} 13. Re1 {[%emt 0:0:21]} O-O {[%emt 0:0:1]} 14. Nb3 {[%emt 0:0:19]} Qf6 {[%emt 0:0:1]} ({Much weaker is} 14... e5 $6 15. Nfxd4 Nxd4 16. Nxd4 $16 )15. c5 {[%emt 0:0:13]} Bc7 {[%emt 0:0:1]} 16. Qc2 {[%emt 0:0:13]} Rd8 {[%emt 0:0:1]} 17. Nbd2 {[%emt 0:0:6]} a4 {[%emt 0:0:2]} 18. b4 {[%emt 0:0:26]} axb3 {[%emt 0:0:2]} 19. Nxb3 {[%emt 0:0:2]} e5 {[%emt 0:0:18]} 20. Nfd2 {[%emt 0:0:1]} Bf5 {[%emt 0:0:12]} 21. Nc4 {[%emt 0:0:28]} Ra7 {[%emt 0:0:2]} 22. Nbd2 {[%emt 0:0:8]} Qe7 {[%emt 0:0:6]} 23. Nb3 {[%emt 0:0:14]} Qf6 {[%emt 0:0:5]} 24. Reb1 {[%emt 0:0:9]} Qg6 {[%emt 0:0:2]} 25. Nc1 {[%emt 0:0:9]} h5 {[%emt 0:0:34][%cal Oh5h4]} 26. Rb3 {[%emt 0:0:5]} h4 {[%emt 0:0:1]} 27. Ne2 {[%emt 0:0:2]} (27. Rab1 $11 {remains equal.} )h3 $36 {[%emt 0:0:2][%mdl 2048] Black is really pushing.} 28. Bf1 {[%emt 0:0:13] Now White is beyond hope.} (28. Bh1 $17 )e4 $19 {[%emt 0:0:3]} 29. dxe4 {[%emt 0:0:8]} (29. Rd1 {was called for.} )Bxe4 {[%emt 0:0:0]} 30. Qd2 {[%emt 0:0:4]} (30. Qc1 $142 d3 31. Nf4 Bxf4 (31... d2 $2 32. Qxd2 Qf6 33. Qe2 $19 )32. Qxf4 )d3 {[%emt 0:0:2]} 31. Nf4 {[%emt 0:0:3]} Qf6 {[%emt 0:0:8]} 32. Rd1 {[%emt 0:0:5]} (32. Qe3 $142 Nd4 (32... Qxa1 $2 33. Qxe4 Bxf4 34. gxf4 $19 )33. Qxe4 Nxb3 34. Rd1 Nxc5 35. Qe3 )Nd4 {[%emt 0:0:2] [#] ( -> ...Nf3+)} 33. Rxd3 {[%emt 0:0:8]} Nf3+ {[%emt 0:0:1]} 34. Rxf3 {[%emt 0:0:3] Weighted Error Value: White=0.57/Black=0.04 (flawless) .  Mistake:       	White=5     	---        Inaccurate:     	White=2     	Black=1      OK:         	White=11    	Black=14     Best:        	---       	Black=1} 0-1

[Event "Biel Challengers Blitz 2024"]
[White "Samunenkov,Ihor"]
[Black "Salem,A.R. Saleh"]
[Site "Biel"]
[Round "6.1"]
[Annotator "RC"]
[Result "1/2-1/2"]
[Date "2024.07.21"]
[WhiteElo "2532"]
[BlackElo "2638"]
[PlyCount "70"]
[TimeControl "180+2"]

1. d4 {[%emt 0:0:2]} Nf6 {[%emt 0:0:0]} 2. Nf3 {[%emt 0:0:2]} g6 {[%emt 0:0:1]} 3. Nbd2 {[%emt 0:0:1]} d5 {[%emt 0:0:1]} 4. b4 {[%emt 0:0:3]} Bg7 {[%emt 0:0:2]} 5. e3 {[%emt 0:0:1]} a5 {[%emt 0:0:2]} 6. b5 {[%emt 0:0:2]} c5 {[%emt 0:0:0]} 7. bxc6 {[%emt 0:0:3]} Nxc6 {[%emt 0:0:1]} 8. Be2 {[%emt 0:0:2]} O-O {[%emt 0:0:1]} 9. O-O {[%emt 0:0:2]} Bf5 {[%emt 0:0:1]} 10. c4 {[%emt 0:0:1]} Nb4 {[%emt 0:0:9]} 11. Qb3 {[%emt 0:0:2]} dxc4 {[%emt 0:0:40]} 12. Bxc4 {[%emt 0:0:27]} Bc2 {[%emt 0:0:15]} 13. Qb2 {[%emt 0:0:2]} b5 {[%emt 0:0:14]} 14. Bxb5 {[%emt 0:0:35]} Rb8 {[%emt 0:0:0]} 15. a4 {[%emt 0:0:1]} Nfd5 {[%emt 0:0:1]} 16. Ra3 {[%emt 0:0:15]} Qc7 {[%emt 0:0:18]} 17. Ne1 {[%emt 0:0:40]} e5 {[%emt 0:0:25]} 18. Ndf3 {[%emt 0:0:29]} exd4 {[%emt 0:0:14]} 19. Nxd4 {[%emt 0:0:2]} Rfc8 {[%emt 0:0:19]} 20. Nexc2 {[%emt 0:0:16]} Nxc2 {[%emt 0:0:0]} 21. Qxc2 {[%emt 0:0:1]} Qxc2 {[%emt 0:0:2]} 22. Nxc2 {[%emt 0:0:2]} Rxc2 {[%emt 0:0:0]} 23. Rd3 {[%emt 0:0:19]} Nc3 {[%emt 0:0:2]} 24. Ba3 {[%emt 0:0:1]} Bf6 {[%emt 0:0:8]} 25. Bd6 {[%emt 0:0:12]} Rc8 {[%emt 0:0:2]} 26. Ba6 {[%emt 0:0:2]} Rc6 {[%emt 0:0:4]} 27. Bb5 {[%emt 0:0:1]} Rc8 {[%emt 0:0:9]} 28. Ba6 {[%emt 0:0:1]} Rc6 {[%emt 0:0:5]} 29. Bb5 {[%emt 0:0:2]} Nxb5 {[%emt 0:0:15]} 30. axb5 {[%emt 0:0:1]} Rb6 {[%emt 0:0:1]} 31. Rd5 {[%emt 0:0:4]} Rb2 {[%emt 0:0:0]} 32. g3 {[%emt 0:0:5]} R6xb5 {[%emt 0:0:2]} 33. Rxb5 {[%emt 0:0:3]} Rxb5 {[%emt 0:0:1]} 34. Rc1 {[%emt 0:0:1]} Kg7 {[%emt 0:0:6]} 35. Rc8 {[%emt 0:0:2]} h5 {[%emt 0:0:2]} 1/2-1/2

[Event "Biel Challengers Blitz 2024"]
[White "Vaishali,Rameshbabu"]
[Black "Donchenko,Alexander"]
[Site "Biel"]
[Round "6.2"]
[Annotator "TA"]
[Result "1/2-1/2"]
[Date "2024.07.21"]
[WhiteElo "2489"]
[BlackElo "2639"]
[PlyCount "147"]
[TimeControl "180+2"]

{[%evp 9,147,0,-4,-6,0,-31,6,-95,-94,-81,-20,-22,-13,-33,-31,-37,0,0,0,0,8,7,20,0,0,-5,0,0,0,-31,-33,-34,-40,-37,-33,-25,-42,-41,-41,-71,-85,-86,-95,-78,-37,-43,-11,-13,-12,-68,-9,-3,0,-16,0,-10,0,-45,0,0,0,0,0,0,347,299,29991,89,100,0,0,0,0,0,0,0,0,0,0,0,1619,0,0,0,0,0,0,0,0,0,0,0,0,0,0,0,0,-3,0,0,0,0,0,0,0,0,5501,0,0,0,0,0,0,0,0,0,0,0,0,0,0,0,0,0,0,0,0,0,0,0,0,0,0,0,0,0,0,0,0,0]} 1. d4 {[%emt 0:0:2]} Nf6 {[%emt 0:0:1]} 2. Nf3 {[%emt 0:0:1]} g6 {[%emt 0:0:1]} 3. Nc3 {[%emt 0:0:3]} d5 {[%emt 0:0:2]} 4. Bf4 {[%emt 0:0:2]} Bg7 {[%emt 0:0:1]} 5. Nb5 {[%emt 0:0:5]} Na6 {[%emt 0:0:1]} 6. e3 {[%emt 0:0:2]} O-O {[%emt 0:0:2]} 7. Ne5 {[%emt 0:0:7]} Ne4 {[%emt 0:0:6]} 8. Be2 {[%emt 0:0:6]} (8. f3 $11 {keeps the balance.} Nd6 9. Nc3 )c6 {[%emt 0:0:3]} 9. Nc3 {[%emt 0:0:2]} Nxc3 {[%emt 0:0:5]} (9... f6 $1 $17 {[%cal Rf6e5]} 10. Nf3 e5 )10. bxc3 $11 {[%emt 0:0:1]} Qa5 {[%emt 0:0:2]} 11. O-O {[%emt 0:0:7]} Qxc3 {[%emt 0:0:6][%cal Oa6c5]} 12. Rb1 {[%emt 0:0:5]} Qa5 {[%emt 0:0:12]} 13. c4 {[%emt 0:0:5]} f6 {[%emt 0:0:17]} 14. Nf3 {[%emt 0:0:6]} Qd8 {[%emt 0:0:18]} 15. Qb3 {[%emt 0:0:21]} e6 {[%emt 0:0:19]} 16. cxd5 {[%emt 0:0:23]} cxd5 {[%emt 0:0:5]} 17. Rfc1 {[%emt 0:0:8]} Rf7 {[%emt 0:0:3]} 18. Bxa6 {[%emt 0:0:21]} bxa6 {[%emt 0:0:2]} 19. Ne1 {[%emt 0:0:4]} Bd7 {[%emt 0:0:6]} 20. Nd3 {[%emt 0:0:17]} Bb5 {[%emt 0:0:2]} 21. Nc5 {[%emt 0:0:2]} e5 {[%emt 0:0:9] And now ...Bc4 would win.} 22. Bg3 {[%emt 0:0:11]} Bc4 {[%emt 0:0:9]} 23. Qb2 {[%emt 0:0:37][%cal Rd4e5]} Qe8 {[%emt 0:0:16]} 24. Qc3 {[%emt 0:0:9]} Bxa2 {[%emt 0:0:5]} 25. Ra1 {[%emt 0:0:15]} Bc4 {[%emt 0:0:1]} 26. Nxa6 {[%emt 0:0:2]} exd4 {[%emt 0:0:7]} 27. exd4 {[%emt 0:0:2]} Bh6 {[%emt 0:0:10][%cal Oc4a6] ...Bxa6! would now be deadly. A strong pair of Bishops.} 28. Re1 {[%emt 0:0:7]} Qc6 {[%emt 0:0:2]} 29. Nb4 {[%emt 0:0:2]} ({White should try} 29. Nc5 $11 )Qb5 {[%emt 0:0:12]} (29... Qb7 $15 )30. Na6 {[%emt 0:0:1]} Qc6 {[%emt 0:0:9] Wards off Nc7} 31. Nc5 {[%emt 0:0:2]} Re8 {[%emt 0:0:5]} 32. h4 {[%emt 0:0:2]} Rfe7 {[%emt 0:0:8]} 33. Reb1 {[%emt 0:0:3]} Qc8 {[%emt 0:0:8]} 34. Rb8 {[%emt 0:0:3]} (34. Bd6 $5 Re2 $8 35. Qf3 $14 )Qg4 {[%emt 0:0:2][%cal Oh6e3]} 35. Rxe8+ {[%emt 0:0:2]} Rxe8 {[%emt 0:0:1]} 36. Rxa7 {[%emt 0:0:3]} Bf4 $2 {[%emt 0:0:20][%mdl 8192] [#]} (36... Qd1+ $11 {and Black has nothing to worry.} 37. Kh2 Re1 38. Ra8+ Kf7 39. Ra7+ Kg8 40. Ra8+ Kg7 41. Ne6+ Kf7 (41... Rxe6 42. Qb4 g5 43. Qb7+ Kg6 44. Rg8+ Kf5 45. Qxh7+ Kg4 46. Qxh6 )42. Nd8+ Kg7 43. Ne6+ Kf7 (43... Rxe6 44. Qb4 g5 45. Qb7+ Kg6 46. Rg8+ Kf5 47. Qxh7+ Kg4 48. Qxh6 )44. Nd8+ Kg8 (44... Kg7 45. Ne6+ $11 )45. Ne6+ Kf7 )37. Nd7 $1 $18 {[%emt 0:0:1]} Re6 {[%emt 0:0:14]} (37... Qf5 $18 38. Qa5 Bxg3 39. fxg3 Qe6 )38. Bxf4 $2 {[%emt 0:0:1]} (38. Qa5 {mates} Qd1+ 39. Kh2 Bxg3+ 40. fxg3 Qe2 41. Qd8+ Re8 42. Nxf6+ (42. Qxf6 Qe7 $18 )Kf8 43. Nxe8 (43. Qxe8+ Qxe8 44. Nxh7+ Kg8 $18 )Qxg2+ 44. Kxg2 Bf1+ 45. Kxf1 h6 46. Ng7# )Qxf4 $16 {[%emt 0:0:1] [#]} 39. Qg3 {[%emt 0:0:4] Dancing on a razor blade.} (39. g3 $1 $16 {[%cal Rg3f4]} Qf5 40. Qa5 )Qxg3 $11 {[%emt 0:0:2]} 40. fxg3 {[%emt 0:0:0][%mdl 4096] Endgame. KRB-KRN} Bb5 {[%emt 0:0:3]} 41. Nc5 {[%emt 0:0:3]} Re2 {[%emt 0:0:1]} 42. Rb7 {[%emt 0:0:2]} Bc4 {[%emt 0:0:2]} 43. Nd7 {[%emt 0:0:1]} Re6 {[%emt 0:0:4]} 44. Kf2 {[%emt 0:0:3]} Kg7 $2 {[%emt 0:0:1][%mdl 8192]} (44... Re2+ $11 45. Kf3 Re6 )45. Ne5+ $2 {[%emt 0:0:1]} (45. Nc5+ $18 Kg8 46. Nxe6 )Kg8 {[%emt 0:0:1]} 46. Rb8+ {[%emt 0:0:2]} Kg7 {[%emt 0:0:0]} 47. Rb7+ {[%emt 0:0:1]} Kg8 {[%emt 0:0:6]} 48. Nd7 {[%emt 0:0:1]} Bd3 {[%emt 0:0:2]} 49. Nc5 {[%emt 0:0:1]} Re2+ {[%emt 0:0:1]} 50. Kf3 {[%emt 0:0:1]} Bc4 {[%emt 0:0:1]} 51. Nd7 {[%emt 0:0:5]} Re6 {[%emt 0:0:1]} 52. Rb6 {[%emt 0:0:1]} Kf7 {[%emt 0:0:1]} 53. Rb7 {[%emt 0:0:2]} Re7 {[%emt 0:0:4]} 54. g4 {[%emt 0:0:4]} Bd3 {[%emt 0:0:2]} 55. Nc5 {[%emt 0:0:2] Hoping for Rxe7+.} Be4+ {[%emt 0:0:1]} 56. Kf2 $1 {[%emt 0:0:2]} Rxb7 {[%emt 0:0:2]} 57. Nxb7 {[%emt 0:0:1] KB-KN} g5 $2 {[%emt 0:0:1][%mdl 8192]} (57... Bc2 $11 )58. hxg5 $2 {[%emt 0:0:3]} (58. Nd6+ $18 Ke6 59. Nxe4 dxe4 60. Ke3 gxh4 61. Kxe4 )fxg5 {[%emt 0:0:1] The position is equal.} 59. Nc5 {[%emt 0:0:1] White threatens Nxe4 and mate.} Bg6 {[%emt 0:0:5]} 60. Nd7 {[%emt 0:0:1]} Ke7 {[%emt 0:0:1]} 61. Ne5 {[%emt 0:0:2]} Be4 {[%emt 0:0:1]} 62. Kg3 {[%emt 0:0:3]} Ke6 {[%emt 0:0:1]} 63. Kf2 {[%emt 0:0:1]} Bg6 {[%emt 0:0:5]} 64. g3 {[%emt 0:0:1]} Kd6 {[%emt 0:0:1]} 65. Ke3 {[%emt 0:0:1]} Be8 {[%emt 0:0:1]} 66. Kd3 {[%emt 0:0:3]} Kc7 {[%emt 0:0:2]} 67. Kc3 {[%emt 0:0:2]} Kb6 {[%emt 0:0:1]} 68. Kb4 {[%emt 0:0:1]} (68. Nf3 $5 h6 $8 69. Ne5 $11 )h6 {[%emt 0:0:3]} 69. Nd3 {[%emt 0:0:6]} Bd7 {[%emt 0:0:1]} 70. Ne5 {[%emt 0:0:1]} Be6 {[%emt 0:0:1]} 71. Ka4 {[%emt 0:0:2]} Bc8 {[%emt 0:0:2]} 72. Kb4 $1 {[%emt 0:0:1]} Be6 {[%emt 0:0:1]} 73. Ka4 {[%emt 0:0:3]} Bc8 {[%emt 0:0:4]} 74. Kb4 {[%emt 0:0:2] Weighted Error Value: White=0.38/Black=0.30.  Loses game:     	---       	Black=3      Missed win:     	White=3     	---        Mistake:       	White=2     	Black=3      Inaccurate:     	White=4     	Black=5      OK:         	White=25    	Black=26     Best:        	White=5     	Black=3      Strong:       	White=3     	---} 1/2-1/2